fUST/lending_fUST_20260115
["ID","MTS","AMOUNT","RATE_DAILY","PERIOD"]
[401974600,1768431048988,-151.0,0.00024635,2]
[401974602,1768431048998,-151.0,0.00024635,2]
[401974604,1768431049008,-151.0,0.00024635,2]
[401974606,1768431049017,-151.0,0.00024635,2]
[401974608,1768431049027,-847.432412,0.00024635,2]
[401974610,1768431049036,-847.432412,0.00024635,2]
[401974612,1768431049045,-847.432412,0.00024635,2]
[401974614,1768431049056,-847.432412,0.00024635,2]
[401974616,1768431049068,-151.0,0.00024635,2]
[401974618,1768431049077,-1498.239018,0.00024635,2]
[401974620,1768431049087,-1770.408967,0.00024635,2]
[401974622,1768431049096,-1498.239018,0.00024635,2]
[401974624,1768431049106,-1770.408967,0.00024635,2]
[401974626,1768431049115,-1498.239018,0.00024635,2]
[401974628,1768431049124,-1770.408967,0.00024635,2]
[401974630,1768431049135,-1498.239018,0.00024635,2]
[401974632,1768431049146,-1770.408967,0.00024635,2]
[401974634,1768431049155,-151.0,0.00024635,2]
[401974636,1768431049165,-263.265987,0.00024635,2]
[401974638,1768431049175,-263.265987,0.00024635,2]
[401974640,1768431049184,-263.265987,0.00024635,2]
[401974642,1768431049194,-151.0,0.00024635,2]
[401974644,1768431049203,-263.265987,0.00024635,2]
[401974646,1768431049212,-151.0,0.00024635,2]
[401974648,1768431049222,-151.0,0.00024635,2]
[401974650,1768431049232,-215.302666,0.00024635,2]
[401974652,1768431049241,-151.0,0.00024635,2]
[401974654,1768431049252,-900.0,0.00024649,2]
[401974656,1768431049262,-143051.08195296,0.0002465,2]
[401974658,1768431049271,-151.0,0.0002465,2]
[401974660,1768431049282,-151.0,0.0002465,2]
[401974662,1768431049292,-151.0,0.0002465,2]
[401974664,1768431049301,-151.0,0.0002465,2]
[401974666,1768431049312,-206.655593,0.0002465,2]
[401974668,1768431049321,-206.655593,0.0002465,2]
[401974670,1768431049331,-206.655593,0.0002465,2]
[401974672,1768431049340,-206.655593,0.0002465,2]
[401974674,1768431049350,-151.0,0.0002465,2]
[401974676,1768431049360,-151.0,0.0002465,2]
[401974678,1768431049369,-151.0,0.0002465,2]
[401974680,1768431049379,-282.150442,0.0002465,2]
[401974682,1768431049388,-282.150442,0.0002465,2]
[401974684,1768431049398,-151.0,0.0002465,2]
[401974686,1768431049408,-282.150442,0.0002465,2]
[401974688,1768431049419,-282.150442,0.0002465,2]
[401974690,1768431049428,-151.0,0.0002465,2]
[401974692,1768431049438,-151.0,0.0002465,2]
[401974694,1768431049448,-151.0,0.0002465,2]
[401974696,1768431049458,-151.0,0.0002465,2]
[401974698,1768431049468,-151.0,0.0002465,2]
[401974700,1768431049477,-151.0,0.0002465,2]
[401974702,1768431049487,-151.0,0.0002465,2]
[401974704,1768431049496,-151.0,0.0002465,2]
[401974706,1768431049506,-151.0,0.0002465,2]
[401974708,1768431049515,-151.0,0.0002465,2]
[401974710,1768431049525,-249.391796,0.0002465,2]
[401974712,1768431049535,-207.237772,0.0002465,2]
[401974714,1768431049544,-207.237772,0.0002465,2]
[401974716,1768431049554,-207.237772,0.0002465,2]
[401974718,1768431049564,-207.237772,0.0002465,2]
[401974720,1768431049574,-293.503999,0.0002465,2]
[401974722,1768431049583,-293.503999,0.0002465,2]
[401974724,1768431049594,-293.503999,0.0002465,2]
[401974726,1768431049603,-293.503999,0.0002465,2]
[401974728,1768431049613,-151.0,0.0002465,2]
[401974730,1768431049623,-582.913993,0.0002465,2]
[401974732,1768431049633,-582.913993,0.0002465,2]
[401974734,1768431049643,-582.913993,0.0002465,2]
[401974736,1768431049653,-582.913993,0.0002465,2]
[401974738,1768431049662,-187.824189,0.0002465,2]
[401974740,1768431049672,-795.987765,0.0002465,2]
[401974742,1768431049681,-795.987765,0.0002465,2]
[401974743,1768431049691,-795.987765,0.0002465,2]
[401974746,1768431049701,-795.987765,0.0002465,2]
[401974747,1768431049711,-380.0,0.00024658,2]
[401974749,1768431049720,-200.0,0.00024658,2]
[401974752,1768431049730,-500.0,0.00024658,2]
[401974754,1768431049741,-500.0,0.00024667,2]
[401974756,1768431049752,-236.0,0.00024685,14]
[401974758,1768431049762,-900.0,0.0002469,2]
[401974760,1768431049772,-1600.0,0.00024721,2]
[401974762,1768431049782,-445.34305753,0.00024732,86]
[401974764,1768431049792,-800.0,0.00024746,2]
[401974766,1768431049801,-5000.0,0.00024768,2]
[401974768,1768431049811,-16836.12060946,0.00024774,2]
[401974770,1768431049821,-1600.0,0.00024777,2]
[401974772,1768431049831,-900.0,0.00024793,2]
[401974774,1768431049841,-500.0,0.00024795,2]
[401974776,1768431049850,-3915.7,0.000248,14]
[401974778,1768431049860,-196.5,0.000248,7]
[401974780,1768431049870,-223.89,0.000248,7]
[401974782,1768431049880,-1600.0,0.0002481,2]
[401974784,1768431049890,-1600.0,0.00024828,2]
[401974786,1768431049900,-1600.0,0.00024849,2]
[401974788,1768431049909,-722.703,0.00024858,8]
[401974790,1768431049919,-500.0,0.0002487,2]
[401974792,1768431049929,-445.34305753,0.00024872,94]
[401974794,1768431049939,-800.0,0.00024882,2]
[401974796,1768431049949,-200.0,0.00024899,2]
[401974798,1768431049960,-151.0,0.000249,7]
[401974800,1768431049970,-151.0,0.000249,7]
[401974802,1768431049980,-151.0,0.000249,7]
[401974804,1768431049990,-256.419817,0.000249,7]
[401974806,1768431050000,-151.0,0.000249,7]
[401974808,1768431050009,-151.0,0.000249,7]
[401974810,1768431050019,-151.0,0.000249,7]
[401974812,1768431050028,-301.105307,0.000249,7]
[401974814,1768431050037,-151.0,0.000249,7]
[401974816,1768431050047,-191.596972,0.000249,7]
[401974818,1768431050058,-191.596972,0.000249,7]
[401974820,1768431050073,-191.596972,0.000249,7]
[401974822,1768431050082,-191.596972,0.000249,7]
[401974824,1768431050092,-910.867725,0.000249,7]
[401974826,1768431050102,-910.867725,0.000249,7]
[401974828,1768431050112,-179.180636,0.000249,7]
[401974830,1768431050122,-910.867725,0.000249,7]
[401974832,1768431050132,-910.867725,0.000249,7]
[401974834,1768431050143,-151.0,0.000249,7]
[401974836,1768431050153,-151.0,0.000249,7]
[401974837,1768431050164,-151.0,0.000249,7]
[401974840,1768431050174,-151.0,0.000249,7]
[401974841,1768431050184,-206.655593,0.000249,7]
[401974844,1768431050194,-206.655593,0.000249,7]
[401974845,1768431050204,-206.655593,0.000249,7]
[401974847,1768431050214,-206.655593,0.000249,7]
[401974849,1768431050224,-151.0,0.000249,7]
[401974852,1768431050234,-151.0,0.000249,7]
[401974854,1768431050244,-276.465874,0.000249,7]
[401974855,1768431050254,-282.150442,0.000249,7]
[401974857,1768431050266,-282.150442,0.000249,7]
[401974860,1768431050275,-282.150442,0.000249,7]
[401974861,1768431050285,-282.150442,0.000249,7]
[401974863,1768431050295,-151.0,0.000249,7]
[401974866,1768431050305,-151.0,0.000249,7]
[401974867,1768431050315,-151.0,0.000249,7]
[401974870,1768431050325,-151.0,0.000249,7]
[401974871,1768431050334,-151.0,0.000249,7]
[401974873,1768431050344,-158.985841,0.000249,7]
[401974875,1768431050354,-151.0,0.000249,7]
[401974877,1768431050363,-151.0,0.000249,7]
[401974879,1768431050372,-151.0,0.000249,7]
[401974881,1768431050382,-207.237772,0.000249,7]
[401974883,1768431050392,-207.237772,0.000249,7]
[401974885,1768431050401,-207.237772,0.000249,7]
[401974887,1768431050410,-207.237772,0.000249,7]
[401974889,1768431050420,-293.503999,0.000249,7]
[401974891,1768431050430,-293.503999,0.000249,7]
[401974893,1768431050440,-293.503999,0.000249,7]
[401974895,1768431050449,-293.503999,0.000249,7]
[401974897,1768431050459,-582.913993,0.000249,7]
[401974899,1768431050470,-582.913993,0.000249,7]
[401974901,1768431050479,-582.913993,0.000249,7]
[401974903,1768431050489,-582.913993,0.000249,7]
[401974905,1768431050498,-580175.276332,0.000249,2]
[401974907,1768431050508,-795.987765,0.000249,7]
[401974909,1768431050518,-795.987765,0.000249,7]
[401974911,1768431050528,-795.987765,0.000249,7]
[401974913,1768431050538,-795.987765,0.000249,7]
[401974915,1768431050547,-151.0,0.000249,2]
[401974917,1768431050557,-151.0,0.000249,7]
[401974919,1768431050568,-151.0,0.000249,7]
[401974921,1768431050578,-151.0,0.000249,7]
[401974924,1768431050588,-224.869292,0.000249,7]
[401974925,1768431050597,-847.432412,0.000249,7]
[401974927,1768431050607,-847.432412,0.000249,7]
[401974929,1768431050616,-847.432412,0.000249,7]
[401974931,1768431050627,-847.432412,0.000249,7]
[401974933,1768431050636,-1498.239018,0.000249,7]
[401974935,1768431050646,-1770.408967,0.000249,7]
[401974937,1768431050655,-1498.239018,0.000249,7]
[401974939,1768431050665,-1770.408967,0.000249,7]
[401974941,1768431050675,-1498.239018,0.000249,7]
[401974943,1768431050685,-1770.408967,0.000249,7]
[401974945,1768431050694,-1498.239018,0.000249,7]
[401974947,1768431050704,-1770.408967,0.000249,7]
[401974949,1768431050714,-191.490217,0.000249,7]
[401974951,1768431050724,-263.265987,0.000249,7]
[401974953,1768431050734,-263.265987,0.000249,7]
[401974955,1768431050743,-263.265987,0.000249,7]
[401974957,1768431050753,-151.0,0.000249,7]
[401974959,1768431050763,-263.265987,0.000249,7]
[401974961,1768431050774,-151.0,0.000249,7]
[401974963,1768431050785,-151.0,0.000249,7]
[401974965,1768431050796,-151.0,0.000249,7]
[401974967,1768431050806,-151.0,0.000249,7]
[401974969,1768431050816,-151.0,0.000249,7]
[401974971,1768431050825,-151.0,0.000249,7]
[401974973,1768431050835,-151.0,0.000249,7]
[401974975,1768431050845,-151.0,0.000249,7]
[401974977,1768431050854,-151.0,0.000249,7]
[401974979,1768431050864,-282.093229,0.000249,7]
[401974981,1768431050874,-151.0,0.000249,7]
[401974983,1768431050883,-151.0,0.000249,7]
[401974985,1768431050892,-151.0,0.000249,7]
[401974987,1768431050902,-186.591978,0.000249,7]
[401974989,1768431050911,-186.591978,0.000249,7]
[401974991,1768431050922,-186.591978,0.000249,7]
[401974993,1768431050931,-186.591978,0.000249,7]
[401974995,1768431050941,-171.320259,0.000249,7]
[401974997,1768431050950,-593.168376,0.000249,7]
[401974999,1768431050959,-593.168376,0.000249,7]
[401975001,1768431050968,-285.163634,0.000249,7]
[401975002,1768431050978,-593.168376,0.000249,7]
[401975003,1768431050988,-151.0,0.000249,7]
[401975004,1768431050998,-593.168376,0.000249,7]
[401975005,1768431051007,-151.0,0.000249,7]
[401975006,1768431051017,-151.0,0.000249,7]
[401975007,1768431051027,-155.824864,0.000249,7]
[401975008,1768431051037,-151.0,0.000249,7]
[401975009,1768431051047,-151.0,0.000249,7]
[401975010,1768431051059,-800.0,0.00024902,2]
[401975011,1768431051070,-186.0,0.00024932,7]
[401975012,1768431051089,-500.0,0.00024932,2]
[401975013,1768431051102,-160.0,0.00024952,3]
[401975014,1768431051113,-1600.0,0.00024959,2]
[401975015,1768431051124,-250.0,0.00024965,2]
[401975016,1768431051137,-151.0,0.00024965,2]
[401975017,1768431051148,-500.0,0.00024965,2]
[401975018,1768431051158,-250.0,0.00024965,2]
[401975019,1768431051169,-250.0,0.00024965,2]
[401975021,1768431051180,-151.0,0.00024965,2]
[401975023,1768431051191,-500.0,0.00024965,2]
[401975025,1768431051201,-250.0,0.00024965,2]
[401975027,1768431051212,-294.03317915,0.00024965,2]
[401975029,1768431051222,-151.0,0.00024965,2]
[401975031,1768431051233,-500.0,0.00024965,2]
[401975033,1768431051244,-255.9181721,0.00024965,2]
[401975036,1768431051256,-151.0,0.00024965,2]
[401975049,1768431051431,-500.0,0.00024965,2]
[401975050,1768431051458,-250.0,0.00024965,2]
[401975051,1768431051468,-151.0,0.00024965,2]
[401975052,1768431051477,-250.0,0.00024965,2]
[401975053,1768431051486,-500.0,0.00024965,2]
[401975054,1768431051496,-168.3888056,0.00024965,2]
[401975055,1768431051505,-151.0,0.00024965,2]
[401975056,1768431051514,-500.0,0.00024965,2]
[401975057,1768431051523,-250.0,0.00024965,2]
[401975058,1768431051536,-151.0,0.00024965,2]
[401975059,1768431051546,-250.0,0.00024965,2]
[401975060,1768431051555,-500.0,0.00024965,2]
[401975061,1768431051564,-151.0,0.00024965,2]
[401975062,1768431051573,-250.0,0.00024965,2]
[401975063,1768431051583,-500.0,0.00024965,2]
[401975064,1768431051592,-151.0,0.00024965,2]
[401975065,1768431051601,-283.61044671,0.00024965,2]
[401975066,1768431051611,-271.32439801,0.00024965,2]
[401975067,1768431051620,-151.0,0.00024965,2]
[401975068,1768431051629,-500.0,0.00024965,2]
[401975069,1768431051639,-151.0,0.00024965,2]
[401975070,1768431051648,-2230.315306,0.00024965,2]
[401975071,1768431051657,-500.0,0.00024965,2]
[401975072,1768431051668,-160.0,0.00024965,2]
[401975074,1768431051677,-151.0,0.00024965,2]
[401975076,1768431051687,-500.0,0.00024965,2]
[401975077,1768431051697,-160.0,0.00024965,2]
[401975078,1768431051707,-151.0,0.00024965,2]
[401975079,1768431051716,-500.0,0.00024965,2]
[401975080,1768431051726,-164.08273023,0.00024965,2]
[401975081,1768431051736,-245.0,0.00024965,2]
[401975082,1768431051745,-500.0,0.00024965,2]
[401975083,1768431051755,-500.0,0.00024965,2]
[401975084,1768431051766,-500.0,0.00024965,2]
[401975085,1768431051776,-151.0,0.00024965,2]
[401975086,1768431051786,-500.0,0.00024965,2]
[401975087,1768431051795,-500.0,0.00024965,2]
[401975088,1768431051805,-297.43886801,0.00024965,2]
[401975089,1768431051815,-168.3888056,0.00024965,2]
[401975090,1768431051824,-174.61919141,0.00024965,2]
[401975091,1768431051835,-181.08010149,0.00024965,2]
[401975092,1768431051844,-187.78006525,0.00024965,2]
[401975093,1768431051854,-194.72792766,0.00024965,2]
[401975094,1768431051863,-201.93286099,0.00024965,2]
[401975095,1768431051874,-209.40437684,0.00024965,2]
[401975096,1768431051883,-217.15233878,0.00024965,2]
[401975097,1768431051892,-461.67526834,0.00024965,2]
[401975098,1768431051902,-250.0,0.00024965,2]
[401975099,1768431051911,-225.18697532,0.00024965,2]
[401975100,1768431051921,-250.0,0.00024965,2]
[401975101,1768431051930,-233.51889341,0.00024965,2]
[401975102,1768431051940,-151.0,0.00024965,2]
[401975103,1768431051950,-250.0,0.00024965,2]
[401975104,1768431051960,-242.15909246,0.00024965,2]
[401975105,1768431051970,-151.0,0.00024965,2]
[401975107,1768431051979,-250.0,0.00024965,2]
[401975109,1768431051988,-251.11897888,0.00024965,2]
[401975111,1768431051998,-151.0,0.00024965,2]
[401975113,1768431052007,-250.0,0.00024965,2]
[401975115,1768431052017,-30000.0,0.00024965,2]
[401975116,1768431052027,-151.0,0.00024965,2]
[401975117,1768431052037,-260.4103811,0.00024965,2]
[401975118,1768431052046,-250.0,0.00024965,2]
[401975119,1768431052057,-151.0,0.00024965,2]
[401975120,1768431052069,-270.0455652,0.00024965,2]
[401975121,1768431052078,-250.0,0.00024965,2]
[401975122,1768431052088,-151.0,0.00024965,2]
[401975123,1768431052097,-280.03725112,0.00024965,2]
[401975124,1768431052108,-250.0,0.00024965,2]
[401975125,1768431052118,-151.0,0.00024965,2]
[401975126,1768431052128,-290.39862941,0.00024965,2]
[401975127,1768431052137,-273.43146715,0.00024965,2]
[401975128,1768431052147,-151.0,0.00024965,2]
[401975129,1768431052157,-301.1433787,0.00024965,2]
[401975130,1768431052166,-151.0,0.00024965,2]
[401975131,1768431052176,-163.79209166,0.00024965,2]
[401975132,1768431052187,-1600.0,0.00024973,2]
[401975133,1768431052197,-1600.0,0.00024982,2]
[401975134,1768431052206,-499.3,0.00024984,2]
[401975135,1768431052216,-1000.0,0.00024991,10]
[401975136,1768431052225,-1000.0,0.00024991,10]
[401975137,1768431052234,-900.0,0.00024997,2]
[401975138,1768431052243,-200.0,0.00024999,2]
[401975139,1768431052252,-900.0,0.00024999,2]
[401975140,1768431052262,-155485.69389668,0.00025,15]
[401975141,1768431052271,-1041.66666667,0.00025,7]
[401975142,1768431052281,-186.0,0.00025,7]
[401975143,1768431052291,-714.6,0.00025001,2]
[401975145,1768431052300,-445.34305753,0.00025011,102]
[401975146,1768431052309,-1041.66666667,0.0002505,7]
[401975148,1768431052318,-500.0,0.00025063,7]
[401975149,1768431052328,-900.0,0.00025065,7]
[401975150,1768431052337,-813.50644317,0.00025066,19]
[401975151,1768431052347,-500.0,0.00025069,2]
[401975152,1768431052356,-3100.0,0.00025078,7]
[401975153,1768431052366,-1296.0967193,0.00025092,7]
[401975154,1768431052375,-1700.0,0.00025119,7]
[401975155,1768431052384,-445.34305753,0.00025151,110]
[401975156,1768431052394,-250.0,0.00025205,2]
[401975157,1768431052404,-500.0,0.00025206,2]
[401975158,1768431052413,-232.46843313,0.0002533,55]
[401975159,1768431052423,-588.909417,0.00025342,2]
[401975160,1768431052433,-417.0,0.00025343,2]
[401975161,1768431052443,-417.0,0.00025343,2]
[401975162,1768431052452,-772.163,0.00025343,2]
[401975163,1768431052461,-197.967,0.00025343,2]
[401975164,1768431052471,-629.0,0.00025343,2]
[401975165,1768431052480,-2147.0,0.00025343,2]
[401975166,1768431052489,-1367.0,0.00025343,2]
[401975167,1768431052499,-202.526,0.00025343,2]
[401975168,1768431052508,-500.0,0.00025343,2]
[401975169,1768431052518,-167.77,0.000254,7]
[401975170,1768431052528,-2000.0,0.00025435,7]
[401975171,1768431052537,-500.0,0.0002548,2]
[401975172,1768431052547,-160.0,0.00025492,4]
[401975173,1768431052556,-2322.78,0.000255,7]
[401975174,1768431052566,-5888.0,0.00025501,2]
[401975175,1768431052576,-174.61919141,0.00025513,2]
[401975176,1768431052586,-2312.83697232,0.00025513,2]
[401975177,1768431052596,-478.75725327,0.00025513,2]
[401975178,1768431052606,-31110.0,0.00025513,2]
[401975179,1768431052615,-1506.0,0.00025559,2]
[401975180,1768431052624,-500.0,0.00025617,2]
[401975181,1768431052634,-589.69745305,0.00025646,5]
[401975182,1768431052643,-29951.84,0.000257,2]
[401975183,1768431052653,-350.0,0.00025753,2]
[401975184,1768431052663,-500.0,0.00025754,2]
[401975185,1768431052673,-238.0,0.00025781,14]
[401975186,1768431052682,-1506.0,0.00025793,2]
[401975187,1768431052692,-5888.0,0.00025822,2]
[401975189,1768431052702,-813.50644317,0.00025857,20]
[401975191,1768431052711,-1506.0,0.0002588,2]
[401975193,1768431052722,-186.0,0.0002589,7]
[401975195,1768431052731,-500.0,0.00025891,2]
[401975197,1768431052741,-3915.7,0.000259,14]
[401975199,1768431052750,-196.5,0.000259,7]
[401975201,1768431052760,-223.89,0.000259,7]
[401975203,1768431052769,-4427.0,0.00025931,2]
[401975204,1768431052779,-5888.0,0.00025958,2]
[401975205,1768431052788,-6803.24817253,0.00026,10]
[401975206,1768431052798,-530.08019871,0.00026,2]
[401975207,1768431052807,-38572.22065595,0.00026,30]
[401975208,1768431052816,-896.18087791,0.00026,2]
[401975209,1768431052826,-161.0,0.00026,5]
[401975210,1768431052835,-1041.66666667,0.00026,10]
[401975211,1768431052845,-1041.66666667,0.00026,30]
[401975212,1768431052854,-4332.57,0.00026027,2]
[401975213,1768431052865,-500.0,0.00026028,2]
[401975214,1768431052874,-714.6,0.00026028,2]
[401975215,1768431052883,-160.0,0.00026031,5]
[401975216,1768431052893,-800.0,0.00026035,2]
[401975217,1768431052902,-181.08010149,0.00026061,2]
[401975218,1768431052913,-2398.4119403,0.00026061,2]
[401975219,1768431052922,-496.47127164,0.00026061,2]
[401975220,1768431052931,-32261.07,0.00026061,2]
[401975221,1768431052940,-5000.0,0.00026068,2]
[401975222,1768431052949,-778.0,0.000261,2]
[401975223,1768431052959,-755.1645066,0.00026137,2]
[401975224,1768431052969,-1506.0,0.00026154,2]
[401975225,1768431052979,-194.72949231,0.0002616,2]
[401975226,1768431052989,-2000.0,0.00026163,7]
[401975227,1768431052998,-500.0,0.00026165,2]
[401975228,1768431053007,-63866.0697921,0.0002619,2]
[401975229,1768431053016,-5888.0,0.00026269,2]
[401975230,1768431053025,-1506.0,0.00026281,2]
[401975231,1768431053035,-450.0,0.00026301,2]
[401975232,1768431053044,-500.0,0.00026302,2]
[401975233,1768431053053,-810.88509082,0.00026327,2]
[401975234,1768431053066,-1506.0,0.00026343,7]
[401975235,1768431053076,-500.0,0.00026439,2]
[401975236,1768431053085,-2322.78,0.000265,7]
[401975237,1768431053095,-200.0,0.0002654,14]
[401975238,1768431053105,-160.0,0.0002657,6]
[401975239,1768431053114,-5888.0,0.00026581,7]
[401975240,1768431053124,-187.78006525,0.00026609,2]
[401975241,1768431053134,-2487.15318209,0.00026609,2]
[401975242,1768431053145,-514.84070869,0.00026609,2]
[401975243,1768431053154,-800.0,0.0002664,2]
[401975244,1768431053163,-800.0,0.00026641,2]
[401975245,1768431053173,-813.50644317,0.00026647,21]
[401975246,1768431053182,-1506.0,0.00026746,2]
[401975247,1768431053192,-1506.0,0.00026755,2]
[401975248,1768431053201,-232.46843313,0.00026786,67]
[401975249,1768431053211,-1506.0,0.00026823,2]
[401975250,1768431053221,-550.0,0.00026849,2]
[401975251,1768431053231,-271.0,0.00026877,14]
[401975252,1768431053240,-388.4012934,0.00026877,2]
[401975253,1768431053249,-387.9259802,0.00026877,2]
[401975254,1768431053259,-2000.0,0.00026891,7]
[401975255,1768431053269,-1506.0,0.00026947,2]
[401975256,1768431053278,-1506.0,0.00026985,2]
[401975257,1768431053288,-600.0,0.00027,14]
[401975258,1768431053297,-3915.7,0.00027,14]
[401975259,1768431053306,-196.5,0.00027,7]
[401975260,1768431053315,-223.89,0.00027,7]
[401975261,1768431053324,-29951.84,0.00027,2]
[401975262,1768431053334,-282.150442,0.00027,7]
[401975263,1768431053343,-282.150442,0.00027,7]
[401975264,1768431053353,-282.150442,0.00027,7]
[401975265,1768431053363,-282.150442,0.00027,7]
[401975266,1768431053372,-151.0,0.00027,7]
[401975267,1768431053382,-151.0,0.00027,7]
[401975268,1768431053392,-151.0,0.00027,7]
[401975269,1768431053401,-151.0,0.00027,7]
[401975270,1768431053410,-252.547119,0.00027,7]
[401975271,1768431053420,-151.0,0.00027,7]
[401975272,1768431053429,-151.0,0.00027,7]
[401975273,1768431053439,-151.0,0.00027,7]
[401975274,1768431053449,-207.237772,0.00027,7]
[401975275,1768431053459,-207.237772,0.00027,7]
[401975276,1768431053469,-207.237772,0.00027,7]
[401975277,1768431053478,-207.237772,0.00027,7]
[401975278,1768431053487,-293.503999,0.00027,7]
[401975279,1768431053496,-293.503999,0.00027,7]
[401975280,1768431053506,-293.503999,0.00027,7]
[401975281,1768431053515,-293.503999,0.00027,7]
[401975282,1768431053525,-582.913993,0.00027,7]
[401975283,1768431053535,-582.913993,0.00027,7]
[401975284,1768431053544,-582.913993,0.00027,7]
[401975285,1768431053553,-582.913993,0.00027,7]
[401975286,1768431053562,-795.987765,0.00027,7]
[401975287,1768431053571,-795.987765,0.00027,7]
[401975288,1768431053581,-795.987765,0.00027,7]
[401975289,1768431053590,-795.987765,0.00027,7]
[401975290,1768431053600,-151.0,0.00027,7]
[401975291,1768431053609,-151.0,0.00027,7]
[401975292,1768431053619,-151.0,0.00027,7]
[401975293,1768431053628,-847.432412,0.00027,7]
[401975294,1768431053637,-847.432412,0.00027,7]
[401975295,1768431053646,-847.432412,0.00027,7]
[401975296,1768431053655,-847.432412,0.00027,7]
[401975297,1768431053664,-1498.239018,0.00027,7]
[401975298,1768431053674,-1770.408967,0.00027,7]
[401975299,1768431053684,-1498.239018,0.00027,7]
[401975300,1768431053693,-1770.408967,0.00027,7]
[401975301,1768431053703,-1498.239018,0.00027,7]
[401975302,1768431053713,-1498.239018,0.00027,7]
[401975303,1768431053722,-1770.408967,0.00027,7]
[401975304,1768431053731,-1770.408967,0.00027,7]
[401975305,1768431053741,-263.265987,0.00027,7]
[401975306,1768431053751,-263.265987,0.00027,7]
[401975307,1768431053760,-263.265987,0.00027,7]
[401975308,1768431053769,-151.0,0.00027,7]
[401975309,1768431053778,-263.265987,0.00027,7]
[401975310,1768431053788,-151.0,0.00027,7]
[401975311,1768431053798,-151.0,0.00027,7]
[401975312,1768431053807,-151.0,0.00027,7]
[401975313,1768431053816,-151.0,0.00027,7]
[401975314,1768431053826,-151.0,0.00027,7]
[401975315,1768431053835,-151.0,0.00027,7]
[401975316,1768431053845,-151.0,0.00027,7]
[401975317,1768431053855,-151.0,0.00027,7]
[401975318,1768431053865,-151.0,0.00027,7]
[401975319,1768431053874,-151.0,0.00027,7]
[401975320,1768431053884,-151.0,0.00027,7]
[401975321,1768431053893,-186.591978,0.00027,7]
[401975322,1768431053903,-186.591978,0.00027,7]
[401975323,1768431053912,-186.591978,0.00027,7]
[401975324,1768431053922,-186.591978,0.00027,7]
[401975325,1768431053932,-593.168376,0.00027,7]
[401975326,1768431053941,-593.168376,0.00027,7]
[401975327,1768431053952,-593.168376,0.00027,7]
[401975328,1768431053961,-593.168376,0.00027,7]
[401975329,1768431053970,-231.464097,0.00027,7]
[401975330,1768431053980,-151.0,0.00027,7]
[401975331,1768431053989,-151.0,0.00027,7]
[401975332,1768431053998,-151.0,0.00027,7]
[401975333,1768431054008,-714.6,0.00027055,5]
[401975334,1768431054017,-1506.0,0.00027102,2]
[401975335,1768431054027,-160.0,0.00027109,7]
[401975336,1768431054036,-194.72792766,0.00027157,2]
[401975337,1768431054046,-2579.17784983,0.00027157,2]